[Event "105th British-ch 2018"]
[Site "Hull"]
[Date "2018.08.05"]
[Round "9"]
[White "Price, Gwilym T"]
[Black "Muir, Andrew J"]
[Result "0-1"]
[ECO "B65"]
[WhiteElo "2085"]
[BlackElo "2291"]
[Annotator "NA"]
[PlyCount "126"]
[EventDate "2018.07.28"]
[EventType "swiss"]
[EventCountry "GBR"]
[SourceTitle "playchess.com"]
[Source "ChessBase"]
[SourceQuality "1"]
[TimeControl "40/5400+30:1800+30"]

1. e4 {[%emt 0:00:00]} c5 {[%emt 0:00:00]} 2. Nf3 {[%emt 0:00:00]} Nc6 {[%emt 0:00:00]} 3. d4 {[%emt 0:00:00]} cxd4 {[%emt 0:00:01]} 4. Nxd4 {[%emt 0:00:00]} Nf6 {[%emt 0:00:05]} 5. Nc3 {[%emt 0:00:00]} d6 {[%emt 0:00:35]} 6. Bg5 {[%emt 0:00:05]} e6 {[%emt 0:00:28]} 7. Qd2 {[%emt 0:00:05]} Be7 {[%emt 0:00:10]} 8. O-O-O {[%emt 0:00:15]} O-O {[%emt 0:00:08]} 9. f4 {[%emt 0:00:19]} Nxd4 {[%emt 0:00:25]} 10. Qxd4 {[%emt 0:00:07]} Qa5 {[%emt 0:00:02]} 11. Kb1 {[%emt 0:00:22]} h6 {[%emt 0:01:06]} 12. h4 {[%emt 0:00:28]} e5 {[%emt 0:03:24] B65: Sizilianisch (Richter/Rauser-Angriff)} 13. Qd3 {[%emt 0:05:29]} (13. Qf2 exf4 14. Nd5 Nxd5 15. Rxd5 Qc7 16. Qxf4 Re8 17. Bxh6 Bf6 18. Bb5 Be6 19. Bxe8 Bxd5 20. exd5 Rxe8 {½-½ (39) Almasi,Z (2717)-Acs,P (2602) Paks 2010}) 13... exf4 {[%emt 0:01:57]} 14. Bxf4 {[%emt 0:00:13]} Be6 {[%emt 0:02:53]} 15. Nd5 {[%emt 0:09:01]} Bxd5 {[%emt 0:00:35]} 16. exd5 {[%emt 0:00:09]} Rfe8 {[%emt 0:20:51]} 17. Be2 {[%emt 0:03:46]} Bf8 $146 {[%emt 0:03:55]} ({Vorgänger:} 17... Nd7 18. Qf5 Nc5 19. Bd3 Nxd3 20. Rxd3 Bxh4 {1-0 (66) Shchekachev,A (2460)-Lepelletier,B (2385) Cannes 1995}) 18. Rhe1 {[%emt 0:16:35]} Re4 {[%emt 0:02:57]} 19. Bd2 {[%emt 0:06:45]} Qc5 {[%emt 0:14:59]} 20. Bf3 {[%emt 0:02:22]} Rxh4 {[%emt 0:04:26]} 21. Bc3 {[%emt 0:01:25]} Qc4 {[%emt 0:05:36]} 22. Bxf6 {[%emt 0:04:22]} Qxd3 {[%emt 0:01:47]} 23. Rxd3 {[%emt 0:00:49]} gxf6 {[%emt 0:00:06]} 24. c3 {[%emt 0:01:42]} f5 {[%emt 0:01:14]} 25. Rde3 {[%emt 0:00:51]} Rc4 {[%emt 0:03:44]} 26. Re8 {[%emt 0:04:47]} Rxe8 {[%emt 0:02:04]} 27. Rxe8 {[%emt 0:00:06]} Rc7 {[%emt 0:00:33]} 28. Kc2 {[%emt 0:01:14]} Kg7 {[%emt 0:00:38]} 29. Re1 {[%emt 0:01:49]} Be7 {[%emt 0:01:27]} 30. Kd3 {[%emt 0:01:04]} Bf6 {[%emt 0:01:04]} 31. Re2 {[%emt 0:04:03]} Be5 {[%emt 0:09:25]} 32. Rc2 {[%emt 0:04:06]} Kg6 {[%emt 0:01:44]} 33. b4 {[%emt 0:01:12]} h5 {[%emt 0:01:29]} 34. c4 {[%emt 0:01:46]} b6 {[%emt 0:00:14]} 35. Rc1 {[%emt 0:06:57]} h4 {[%emt 0:00:29]} 36. a4 {[%emt 0:00:28]} Kg5 {[%emt 0:01:38]} 37. Rf1 {[%emt 0:03:56]} Rc8 {[%emt 0:01:43]} 38. Bd1 {[%emt 0:01:37]} Rh8 {[%emt 0:04:54]} 39. Rf3 {[%emt 0:03:10]} Bf4 {[%emt 0:01:30]} 40. Rf2 {[%emt 0:06:22]} h3 {[%emt 0:01:22]} 41. gxh3 {[%emt 0:30:13]} Rxh3+ {[%emt 0:30:06]} 42. Rf3 {[%emt 0:01:47]} Rh1 {[%emt 0:02:44]} 43. Ke2 {[%emt 0:01:11]} Be5 {[%emt 0:02:53]} 44. Kd2 {[%emt 0:02:03]} Rh2+ {[%emt 0:01:47]} 45. Be2 {[%emt 0:00:32]} f4 {[%emt 0:00:30]} 46. Kd3 {[%emt 0:01:07]} Rg2 {[%emt 0:00:53]} 47. Rf1 {[%emt 0:00:52]} f6 {[%emt 0:00:00]} 48. b5 {[%emt 0:00:00]} f5 {[%emt 0:00:00]} 49. Rf3 {[%emt 0:00:00]} Kh4 {[%emt 0:00:00]} 50. Rf1 {[%emt 0:00:00]} Kh3 {[%emt 0:00:00]} 51. Kd2 {[%emt 0:00:00]} Kh2 {[%emt 0:00:00]} 52. Kd3 {[%emt 0:00:00]} Rg1 {[%emt 0:00:00]} 53. Rf3 {[%emt 0:00:00]} Ra1 {[%emt 0:00:00]} 54. Bf1 {[%emt 0:00:00]} Rxa4 {[%emt 0:00:00]} 55. Kd2 {[%emt 0:00:00]} Kg1 {[%emt 0:00:00]} 56. Be2 {[%emt 0:00:00]} Kg2 {[%emt 0:00:00]} 57. Rb3 {[%emt 0:00:00]} Ra1 {[%emt 0:00:00]} 58. Rf3 {[%emt 0:00:00]} Rb1 {[%emt 0:00:00]} 59. Ra3 $19 {[%emt 0:00:00]} (59. Kc2 Rb2+ 60. Kd1) 59... Rb2+ {[%emt 0:00:00]} 60. Kd1 {[%emt 0:00:00]} Bd4 {[%emt 0:00:00]} 61. Rd3 {[%emt 0:00:00]} Be3 {[%emt 0:00:00]} 62. Ke1 {[%emt 0:00:00]} Rb1+ {[%emt 0:00:00]} 63. Bd1 {[%emt 0:00:09]} f3 {[%emt 0:00:00]} 0-1

[Event "105th British-ch 2018"]
[Site "Hull"]
[Date "2018.08.05"]
[Round "9"]
[White "Jackson, Sheila"]
[Black "Longson, Sarah N"]
[Result "1/2-1/2"]
[ECO "C50"]
[WhiteElo "2072"]
[BlackElo "2123"]
[Annotator "NA"]
[PlyCount "168"]
[EventDate "2018.07.28"]
[EventType "swiss"]
[EventCountry "GBR"]
[SourceTitle "playchess.com"]
[Source "ChessBase"]
[SourceQuality "1"]
[TimeControl "40/5400+30:1800+30"]

1. e4 {[%emt 0:00:00]} e5 {[%emt 0:00:00]} 2. Nf3 {[%emt 0:00:00]} Nc6 {[%emt 0:00:00]} 3. Bc4 {[%emt 0:00:00]} Bc5 {[%emt 0:00:00]} 4. Nc3 {[%emt 0:02:25]} Nf6 {[%emt 0:00:00]} 5. d3 {[%emt 0:00:41]} O-O {[%emt 0:03:08]} 6. O-O {[%emt 0:07:04]} a6 {[%emt 0:03:48]} 7. Bg5 {[%emt 0:07:58]} Be7 {[%emt 0:02:19]} 8. Qd2 {[%emt 0:09:04]} d6 {[%emt 0:00:21]} 9. Bxf6 {[%emt 0:13:57]} Bxf6 {[%emt 0:00:11]} 10. Nd5 {[%emt 0:01:16]} Bg4 {[%emt 0:04:21]} 11. Nxf6+ {[%emt 0:06:34]} Qxf6 {[%emt 0:00:08]} 12. Ne1 {[%emt 0:00:11]} Nd4 {[%emt 0:03:24]} 13. f3 {[%emt 0:00:23]} Be6 {[%emt 0:05:05]} 14. c3 {[%emt 0:01:58]} Nc6 {[%emt 0:02:59]} 15. b4 {[%emt 0:02:16]} Ne7 {[%emt 0:03:18]} 16. Nc2 {[%emt 0:03:21]} Ng6 {[%emt 0:05:03]} 17. g3 {[%emt 0:01:01]} c6 {[%emt 0:08:28]} 18. Bb3 {[%emt 0:13:04]} a5 {[%emt 0:02:15]} 19. Bxe6 {[%emt 0:03:42]} fxe6 {[%emt 0:03:23]} 20. a3 {[%emt 0:00:37]} d5 {[%emt 0:02:38]} 21. Kg2 {[%emt 0:03:49]} Nh8 {[%emt 0:07:18]} 22. bxa5 {[%emt 0:03:54]} Rxa5 {[%emt 0:00:14]} 23. c4 {[%emt 0:00:16]} Raa8 {[%emt 0:06:53]} 24. Rab1 {[%emt 0:00:53]} Rf7 {[%emt 0:02:16]} 25. h4 {[%emt 0:05:09]} Qd8 {[%emt 0:07:19]} 26. Qc3 {[%emt 0:01:23]} d4 {[%emt 0:03:37]} 27. Qd2 {[%emt 0:01:02]} Ng6 {[%emt 0:00:39]} 28. Qg5 {[%emt 0:01:23]} Qa5 {[%emt 0:00:28]} 29. Rb4 {[%emt 0:01:39]} Raf8 {[%emt 0:07:53]} 30. Qc1 {[%emt 0:04:28]} Rb8 {[%emt 0:05:14]} 31. Rf2 {[%emt 0:01:22]} Nf8 {[%emt 0:01:10]} 32. Ne1 {[%emt 0:00:25]} Nd7 {[%emt 0:00:18]} 33. Nc2 {[%emt 0:01:12]} Nc5 {[%emt 0:00:21]} 34. Qd2 {[%emt 0:00:26]} Rbf8 {[%emt 0:01:39]} 35. Qe2 {[%emt 0:02:11]} Rf6 {[%emt 0:01:04]} 36. h5 {[%emt 0:01:33]} Qa8 {[%emt 0:01:17]} 37. g4 {[%emt 0:00:11]} Rf4 {[%emt 0:01:44]} 38. Kg3 {[%emt 0:00:06]} Qd8 {[%emt 0:00:32]} 39. Ne1 {[%emt 0:00:26]} R4f7 {[%emt 0:03:27]} 40. Qd2 {[%emt 0:00:20]} Qf6 {[%emt 0:03:21]} 41. Rb1 {[%emt 0:06:25]} Ra8 {[%emt 0:01:33]} 42. Qb4 {[%emt 0:05:34]} Qe7 {[%emt 0:00:20]} 43. Ra2 {[%emt 0:02:48]} Ra4 {[%emt 0:03:32]} 44. Qd2 {[%emt 0:01:05]} Rf8 {[%emt 0:01:24]} 45. Rb4 {[%emt 0:00:48]} Ra7 {[%emt 0:00:41]} 46. Ra1 {[%emt 0:08:39]} Rfa8 {[%emt 0:02:46]} 47. Nc2 {[%emt 0:00:18]} Qf7 {[%emt 0:01:14]} 48. Qe2 {[%emt 0:06:27]} Qf4+ {[%emt 0:01:53]} 49. Kg2 {[%emt 0:00:01]} Rf8 {[%emt 0:03:45]} 50. Rh1 {[%emt 0:00:18]} Raa8 {[%emt 0:01:28]} 51. Rbb1 {[%emt 0:00:52]} Rf6 {[%emt 0:02:33]} 52. Rh3 {[%emt 0:00:15]} Rf7 {[%emt 0:02:49]} 53. Rg3 {[%emt 0:01:01]} Qg5 {[%emt 0:00:32]} 54. Rh1 {[%emt 0:01:11]} Ra6 {[%emt 0:02:32]} 55. Rb1 {[%emt 0:00:55]} Rf8 {[%emt 0:00:35]} 56. Rh3 {[%emt 0:01:19]} Rf4 {[%emt 0:02:02]} 57. Rg3 {[%emt 0:00:28]} Ra7 {[%emt 0:02:30]} 58. Qd2 {[%emt 0:00:13]} h6 {[%emt 0:03:30]} 59. Rd1 {[%emt 0:00:57]} Qd8 {[%emt 0:01:51]} 60. Kh3 {[%emt 0:01:00]} Ra4 {[%emt 0:01:51]} 61. Kg2 {[%emt 0:00:13]} Qb6 {[%emt 0:01:32]} 62. g5 {[%emt 0:00:18]} hxg5 {[%emt 0:00:25]} 63. Rxg5 Qd8 {[%emt 0:00:53]} 64. Rxe5 {[%emt 0:00:21]} Qf8 {[%emt 0:00:54]} 65. Nxd4 {[%emt 0:00:07]} Rxa3 {[%emt 0:00:43]} 66. Rxc5 {[%emt 0:00:14]} Qxc5 {[%emt 0:00:26]} 67. Nxe6 {[%emt 0:00:25]} Qe7 {[%emt 0:00:45]} 68. Nxf4 {[%emt 0:00:11]} Qg5+ {[%emt 0:00:08]} 69. Kf2 {[%emt 0:00:31]} Qc5+ {[%emt 0:00:34]} 70. Qe3 {[%emt 0:00:13]} Ra2+ {[%emt 0:00:10]} 71. Ne2 {[%emt 0:00:01]} Qxh5 {[%emt 0:00:07]} 72. Rg1 {[%emt 0:00:15]} Qh2+ {[%emt 0:00:36]} 73. Rg2 {[%emt 0:00:27]} Qh4+ {[%emt 0:00:05]} 74. Kf1 {[%emt 0:00:58]} Ra1+ {[%emt 0:00:10]} 75. Nc1 {[%emt 0:00:04]} Qh1+ {[%emt 0:00:42]} 76. Rg1 {[%emt 0:00:04]} Qh3+ {[%emt 0:00:08]} 77. Ke1 {[%emt 0:00:42]} Qh2 {[%emt 0:00:48]} 78. Rxg7+ {[%emt 0:01:27]} Kh8 {[%emt 0:00:51]} 79. Rg8+ {[%emt 0:02:14]} Kxg8 {[%emt 0:00:58]} 80. Qg5+ {[%emt 0:00:02]} Kf7 {[%emt 0:00:20]} 81. Qf5+ {[%emt 0:00:25]} Ke7 {[%emt 0:00:20]} 82. Qg5+ {[%emt 0:00:20]} Kf7 {[%emt 0:00:17]} 83. Qf5+ {[%emt 0:00:13]} Kg7 {[%emt 0:01:43]} 84. Qg5+ {[%emt 0:00:42]} Kf7 {[%emt 0:00:10]} 1/2-1/2

[Event "105th British-ch 2018"]
[Site "Hull"]
[Date "2018.08.05"]
[Round "9"]
[White "Pollack, Oscar"]
[Black "Moore, Graham J"]
[Result "1-0"]
[ECO "C18"]
[WhiteElo "2064"]
[BlackElo "2218"]
[Annotator "NA"]
[PlyCount "93"]
[EventDate "2018.07.28"]
[EventType "swiss"]
[EventCountry "GBR"]
[SourceTitle "playchess.com"]
[Source "ChessBase"]
[SourceQuality "1"]
[TimeControl "40/5400+30:1800+30"]

1. e4 {[%emt 0:00:00]} e6 {[%emt 0:00:03]} 2. d4 {[%emt 0:00:00]} d5 {[%emt 0:00:03]} 3. Nc3 {[%emt 0:00:00]} Bb4 {[%emt 0:00:35]} 4. e5 {[%emt 0:00:00]} c5 {[%emt 0:00:05]} 5. a3 {[%emt 0:00:00]} Bxc3+ {[%emt 0:00:04]} 6. bxc3 {[%emt 0:00:00]} Qa5 {[%emt 0:00:11]} 7. Bd2 {[%emt 0:00:09]} Qa4 {[%emt 0:00:04]} 8. Qb1 {[%emt 0:01:01]} c4 {[%emt 0:00:16]} 9. Nh3 {[%emt 0:00:36]} Nc6 {[%emt 0:03:40]} 10. Be2 {[%emt 0:01:17]} Bd7 {[%emt 0:00:31]} 11. O-O {[%emt 0:01:46]} O-O-O {[%emt 0:00:17]} 12. f4 {[%emt 0:03:22]} Nge7 {[%emt 0:06:10]} 13. Nf2 {[%emt 0:01:24]} h5 {[%emt 0:03:32]} 14. Nd1 {[%emt 0:01:05]} Nf5 {[%emt 0:02:07]} 15. Nb2 {[%emt 0:01:59]} Qa5 {[%emt 0:00:23]} 16. Qe1 {[%emt 0:02:06]} Kb8 {[%emt 0:00:46]} 17. a4 {[%emt 0:03:21]} Rh6 {[%emt 0:08:18]} 18. Bc1 {[%emt 0:04:14]} Rdh8 {[%emt 0:00:53]} 19. Nd1 {[%emt 0:03:05]} Ka8 {[%emt 0:02:06]} 20. Ba3 {[%emt 0:05:46]} Rg6 {[%emt 0:00:34]} 21. Bc5 {[%emt 0:03:26]} h4 {[%emt 0:00:29]} 22. Bf3 {[%emt 0:03:19]} Qd8 {[%emt 0:04:09]} 23. Ne3 {[%emt 0:04:35]} Ng3 {[%emt 0:07:04]} 24. f5 {[%emt 0:01:54]} Rg5 {[%emt 0:03:39]} 25. a5 {[%emt 0:06:07]} Nxf1 {[%emt 0:02:28]} 26. Qxf1 {[%emt 0:00:29]} Nxa5 {[%emt 0:11:10]} 27. Qc1 {[%emt 0:02:51]} Rxf5 {[%emt 0:01:07]} 28. Nxf5 {[%emt 0:00:26]} exf5 {[%emt 0:00:06]} 29. Qa3 {[%emt 0:01:45]} b6 {[%emt 0:02:26]} 30. Bxd5+ {[%emt 0:01:13]} Bc6 {[%emt 0:00:07]} 31. Qxa5 {[%emt 0:05:05]} bxa5 {[%emt 0:00:06]} 32. Bxc6+ {[%emt 0:00:07]} Kb8 {[%emt 0:00:13]} 33. Bd6+ {[%emt 0:00:09]} Kc8 {[%emt 0:00:17]} 34. Rb1 {[%emt 0:00:18]} Qb6 {[%emt 0:00:30]} 35. Rxb6 {[%emt 0:00:05]} axb6 {[%emt 0:00:03]} 36. d5 {[%emt 0:01:16]} Rh6 {[%emt 0:00:34]} 37. Bf8 {[%emt 0:01:20]} h3 {[%emt 0:01:23]} 38. g3 {[%emt 0:00:34]} Rg6 {[%emt 0:00:11]} 39. d6 {[%emt 0:00:39]} f4 {[%emt 0:02:26]} 40. Be7 {[%emt 0:00:25]} fxg3 {[%emt 0:00:06]} 41. d7+ {[%emt 0:30:33]} Kc7 {[%emt 0:30:04]} 42. d8=Q+ {[%emt 0:00:22]} Kxc6 {[%emt 0:00:02]} 43. Qe8+ {[%emt 0:00:45]} Kb7 {[%emt 0:00:23]} 44. Qxf7 {[%emt 0:00:22]} gxh2+ {[%emt 0:00:04]} 45. Kxh2 {[%emt 0:00:07]} Rg2+ {[%emt 0:00:06]} 46. Kxh3 {[%emt 0:00:06]} Rxc2 {[%emt 0:00:11]} 47. Qxc4 {[%emt 0:00:58]} 1-0

[Event "105th British-ch 2018"]
[Site "Hull"]
[Date "2018.08.05"]
[Round "9"]
[White "Thurlow, Kevin J"]
[Black "Sugden, John N"]
[Result "1/2-1/2"]
[ECO "A28"]
[WhiteElo "2030"]
[BlackElo "2090"]
[Annotator "NA"]
[PlyCount "52"]
[EventDate "2018.07.28"]
[EventType "swiss"]
[EventCountry "GBR"]
[SourceTitle "playchess.com"]
[Source "ChessBase"]
[SourceQuality "1"]
[TimeControl "40/5400+30:1800+30"]

1. c4 {[%emt 0:00:00]} e5 {[%emt 0:00:00]} 2. Nc3 {[%emt 0:00:00]} Nc6 {[%emt 0:00:13]} 3. e3 {[%emt 0:00:05]} Nf6 {[%emt 0:05:29]} 4. Nf3 {[%emt 0:00:33]} Be7 {[%emt 0:02:10]} 5. d4 {[%emt 0:00:29]} exd4 {[%emt 0:01:59]} 6. Nxd4 {[%emt 0:00:07]} O-O {[%emt 0:01:11]} 7. Be2 {[%emt 0:00:21]} Bb4 {[%emt 0:06:36]} 8. O-O {[%emt 0:04:18]} Re8 {[%emt 0:03:56]} 9. Nd5 {[%emt 0:05:03]} Nxd5 {[%emt 0:07:52]} 10. cxd5 {[%emt 0:00:26]} Nxd4 {[%emt 0:00:24]} 11. Qxd4 {[%emt 0:00:09]} Be7 {[%emt 0:00:39]} 12. Bf3 {[%emt 0:02:25]} c5 {[%emt 0:00:46]} 13. dxc6 {[%emt 0:00:22]} dxc6 {[%emt 0:00:40]} 14. Rd1 {[%emt 0:00:29]} Qxd4 {[%emt 0:01:26]} 15. Rxd4 {[%emt 0:00:08]} Be6 {[%emt 0:01:52]} 16. Bd2 {[%emt 0:05:32]} Red8 {[%emt 0:04:40]} 17. Bc3 {[%emt 0:00:20]} Bc5 {[%emt 0:04:16]} 18. Rxd8+ {[%emt 0:00:37]} Rxd8 {[%emt 0:00:10]} 19. a3 {[%emt 0:01:09]} Bb3 {[%emt 0:01:36]} 20. Kf1 {[%emt 0:00:10]} f6 {[%emt 0:00:45]} 21. Ke1 {[%emt 0:00:11]} Kf7 {[%emt 0:01:02]} 22. Rc1 {[%emt 0:02:04]} Bb6 {[%emt 0:02:25]} 23. g3 {[%emt 0:04:12]} g6 {[%emt 0:06:13]} 24. Bd1 {[%emt 0:07:13]} Bxd1 {[%emt 0:00:36]} 25. Rxd1 {[%emt 0:00:04]} Rxd1+ {[%emt 0:00:15]} 26. Kxd1 {[%emt 0:00:06]} Ke6 {[%emt 0:00:22]} 1/2-1/2

[Event "105th British-ch 2018"]
[Site "Hull"]
[Date "2018.08.05"]
[Round "9"]
[White "Iyengar, Ilya"]
[Black "Ratnesan, Ranesh"]
[Result "1-0"]
[ECO "E68"]
[WhiteElo "2017"]
[BlackElo "2073"]
[Annotator "NA"]
[PlyCount "91"]
[EventDate "2018.07.28"]
[EventType "swiss"]
[EventCountry "GBR"]
[SourceTitle "playchess.com"]
[Source "ChessBase"]
[SourceQuality "1"]
[TimeControl "40/5400+30:1800+30"]

1. d4 {[%emt 0:00:00]} Nf6 {[%emt 0:00:00]} 2. Nf3 {[%emt 0:00:00]} g6 {[%emt 0:00:00]} 3. c4 {[%emt 0:00:03]} Bg7 {[%emt 0:00:05]} 4. g3 {[%emt 0:00:07]} O-O {[%emt 0:00:09]} 5. Bg2 {[%emt 0:00:13]} d6 {[%emt 0:00:10]} 6. O-O {[%emt 0:00:08]} Nbd7 {[%emt 0:00:08]} 7. Nc3 {[%emt 0:00:10]} e5 {[%emt 0:00:14]} 8. e4 {[%emt 0:00:11]} exd4 {[%emt 0:00:20]} 9. Nxd4 {[%emt 0:00:09]} Re8 {[%emt 0:00:24]} 10. h3 {[%emt 0:00:25]} Nc5 {[%emt 0:00:51]} 11. Re1 {[%emt 0:00:31]} a5 {[%emt 0:00:36]} 12. b3 {[%emt 0:10:55]} Bd7 {[%emt 0:13:48]} 13. Bb2 {[%emt 0:08:16]} Qc8 {[%emt 0:03:45]} 14. Kh2 {[%emt 0:00:33]} a4 {[%emt 0:02:32]} 15. Rb1 {[%emt 0:01:58]} axb3 {[%emt 0:08:43]} 16. axb3 {[%emt 0:00:51]} Ne6 {[%emt 0:01:26]} 17. Nxe6 {[%emt 0:05:36]} Bxe6 {[%emt 0:03:12]} 18. Ra1 {[%emt 0:11:46]} Bd7 {[%emt 0:11:33]} 19. Qc2 {[%emt 0:14:01]} h5 {[%emt 0:14:07]} 20. Nd5 {[%emt 0:10:29]} Nxd5 {[%emt 0:07:18]} 21. cxd5 {[%emt 0:00:56]} Rxa1 {[%emt 0:04:58]} 22. Rxa1 {[%emt 0:04:10]} c5 {[%emt 0:02:03]} 23. h4 {[%emt 0:04:09]} Qd8 {[%emt 0:06:20]} 24. Re1 {[%emt 0:08:21]} b6 {[%emt 0:04:57]} 25. f4 {[%emt 0:03:15]} Bf6 {[%emt 0:03:16]} 26. Qf2 {[%emt 0:05:31]} Bxb2 {[%emt 0:05:10]} 27. Qxb2 {[%emt 0:00:14]} b5 {[%emt 0:00:51]} 28. e5 {[%emt 0:00:37]} Qa5 {[%emt 0:00:56]} 29. Ra1 {[%emt 0:01:12]} Qc7 {[%emt 0:01:02]} 30. e6 {[%emt 0:02:26]} Bc8 {[%emt 0:05:10]} 31. Qf6 {[%emt 0:01:41]} Qe7 {[%emt 0:00:51]} 32. Qxe7 {[%emt 0:04:53]} Rxe7 {[%emt 0:00:08]} 33. Ra8 {[%emt 0:00:05]} Re8 {[%emt 0:00:19]} 34. Bh3 {[%emt 0:00:48]} Bd7 {[%emt 0:01:06]} 35. exf7+ {[%emt 0:02:02]} Kxf7 {[%emt 0:00:08]} 36. Ra7 {[%emt 0:00:04]} Re2+ {[%emt 0:00:31]} 37. Kg1 {[%emt 0:00:24]} Re3 38. Rxd7+ {[%emt 0:00:17]} Kf8 39. Kf2 {[%emt 0:00:29]} Rxb3 {[%emt 0:01:06]} 40. Rxd6 {[%emt 0:00:10]} Kg7 {[%emt 0:00:57]} 41. Rd7+ {[%emt 0:02:59]} Kf8 {[%emt 0:00:55]} 42. Rc7 {[%emt 0:02:42]} c4 {[%emt 0:00:26]} 43. d6 {[%emt 0:00:14]} Rd3 {[%emt 0:00:17]} 44. Rc8+ {[%emt 0:01:02]} Kf7 {[%emt 0:00:10]} 45. d7 {[%emt 0:00:20]} Ke7 {[%emt 0:00:12]} 46. Re8+ {[%emt 0:00:07]} 1-0

[Event "105th British-ch 2018"]
[Site "Hull"]
[Date "2018.08.05"]
[Round "9"]
[White "Miller, Dominic"]
[Black "Burke, Mitchell R"]
[Result "1-0"]
[ECO "B27"]
[WhiteElo "2017"]
[BlackElo "1988"]
[Annotator "NA"]
[PlyCount "77"]
[EventDate "2018.07.28"]
[EventType "swiss"]
[EventCountry "GBR"]
[SourceTitle "playchess.com"]
[Source "ChessBase"]
[SourceQuality "1"]
[TimeControl "40/5400+30:1800+30"]

1. e4 {[%emt 0:00:00]} c5 {[%emt 0:01:31]} 2. Nf3 {[%emt 0:00:00]} h6 {[%emt 0:00:02]} 3. c3 {[%emt 0:00:25]} Qa5 {[%emt 0:02:53]} 4. Be2 {[%emt 0:02:33]} g6 {[%emt 0:07:28]} 5. O-O {[%emt 0:01:10]} Bg7 {[%emt 0:03:05]} 6. d4 {[%emt 0:04:14]} d6 {[%emt 0:06:31]} 7. Na3 {[%emt 0:06:32]} Nc6 {[%emt 0:10:54]} 8. Nc4 {[%emt 0:19:30]} Qc7 {[%emt 0:03:12]} 9. Ne3 {[%emt 0:05:50]} Nf6 {[%emt 0:07:15]} 10. d5 {[%emt 0:22:16]} Nb8 {[%emt 0:05:34]} 11. Qc2 {[%emt 0:03:44]} O-O {[%emt 0:13:16]} 12. a4 {[%emt 0:00:15]} e6 {[%emt 0:03:10]} 13. Nd2 {[%emt 0:00:44]} exd5 {[%emt 0:01:02]} 14. exd5 {[%emt 0:00:55]} b6 {[%emt 0:06:20]} 15. a5 {[%emt 0:03:09]} Nbd7 {[%emt 0:05:55]} 16. axb6 {[%emt 0:01:41]} Nxb6 {[%emt 0:00:20]} 17. Bf3 {[%emt 0:01:02]} Bb7 {[%emt 0:02:14]} 18. Qd3 {[%emt 0:01:56]} a5 {[%emt 0:01:55]} 19. g4 {[%emt 0:04:14]} Qd7 {[%emt 0:02:33]} 20. c4 {[%emt 0:03:02]} Qe7 {[%emt 0:01:44]} 21. Bg2 {[%emt 0:01:39]} Rfe8 {[%emt 0:01:16]} 22. Nf3 {[%emt 0:03:06]} Bc8 {[%emt 0:01:52]} 23. h3 {[%emt 0:00:18]} h5 {[%emt 0:01:13]} 24. Nh2 {[%emt 0:04:43]} hxg4 {[%emt 0:02:04]} 25. hxg4 {[%emt 0:00:00]} Ne4 {[%emt 0:05:40]} 26. Nc2 {[%emt 0:00:00]} Nf6 {[%emt 0:02:29]} 27. Re1 {[%emt 0:04:20]} Qxe1+ {[%emt 0:00:53]} 28. Nxe1 {[%emt 0:00:04]} Rxe1+ {[%emt 0:00:02]} 29. Bf1 {[%emt 0:00:35]} Nxg4 {[%emt 0:00:42]} 30. Nxg4 Bxg4 {[%emt 0:00:09]} 31. Kg2 {[%emt 0:03:23]} Rae8 {[%emt 0:01:14]} 32. Qg3 {[%emt 0:03:27]} Bf5 {[%emt 0:00:38]} 33. Qxd6 {[%emt 0:00:52]} Bh6 {[%emt 0:00:45]} 34. Bxh6 {[%emt 0:00:23]} Be4+ {[%emt 0:00:30]} 35. f3 {[%emt 0:00:10]} Bxf3+ {[%emt 0:00:25]} 36. Kxf3 {[%emt 0:00:06]} Rxa1 {[%emt 0:00:05]} 37. Kg2 {[%emt 0:01:25]} Kh7 {[%emt 0:00:13]} 38. Bg5 {[%emt 0:00:17]} Ree1 {[%emt 0:00:17]} 39. Bf6 {[%emt 0:00:20]} 1-0

[Event "105th British-ch 2018"]
[Site "Hull"]
[Date "2018.08.05"]
[Round "9"]
[White "Stephenson, David W"]
[Black "Jamroz, Krzysztof"]
[Result "0-1"]
[ECO "A45"]
[WhiteElo "1833"]
[BlackElo "2026"]
[Annotator "NA"]
[PlyCount "76"]
[EventDate "2018.07.28"]
[EventType "swiss"]
[EventCountry "GBR"]
[SourceTitle "playchess.com"]
[Source "ChessBase"]
[SourceQuality "1"]
[TimeControl "40/5400+30:1800+30"]

1. d4 {[%emt 0:00:00]} Nf6 {[%emt 0:00:00]} 2. f3 {[%emt 0:00:03]} c5 {[%emt 0:00:53]} 3. d5 {[%emt 0:01:05]} e6 {[%emt 0:00:10]} 4. Nc3 {[%emt 0:04:02]} exd5 {[%emt 0:01:08]} 5. Nxd5 {[%emt 0:00:29]} Nxd5 {[%emt 0:00:05]} 6. Qxd5 {[%emt 0:00:12]} Nc6 {[%emt 0:00:19]} 7. e4 {[%emt 0:03:49]} d6 {[%emt 0:00:40]} 8. Qb3 {[%emt 0:14:36]} Be7 {[%emt 0:03:17]} 9. Bf4 {[%emt 0:05:22]} O-O {[%emt 0:01:52]} 10. O-O-O {[%emt 0:04:03]} Qc7 {[%emt 0:00:15]} 11. Qc3 {[%emt 0:07:09]} Nb4 {[%emt 0:28:07]} 12. Kb1 {[%emt 0:05:34]} Be6 {[%emt 0:02:08]} 13. Bc4 {[%emt 0:03:55]} Bxc4 {[%emt 0:01:56]} 14. Qxc4 {[%emt 0:00:28]} Rab8 {[%emt 0:01:30]} 15. a3 {[%emt 0:02:33]} b5 {[%emt 0:00:39]} 16. Qf1 {[%emt 0:09:26]} Nc6 {[%emt 0:01:08]} 17. Ne2 {[%emt 0:00:56]} b4 {[%emt 0:03:38]} 18. a4 {[%emt 0:07:18]} b3 {[%emt 0:04:03]} 19. c3 {[%emt 0:10:37]} Qa5 {[%emt 0:05:27]} 20. Kc1 {[%emt 0:03:07]} Qxa4 {[%emt 0:00:47]} 21. Kd2 {[%emt 0:00:20]} Na5 {[%emt 0:07:22]} 22. Ke1 {[%emt 0:01:54]} Nc4 {[%emt 0:01:13]} 23. Rb1 {[%emt 0:01:27]} Nxb2 {[%emt 0:00:56]} 24. Nc1 {[%emt 0:01:34]} Nc4 {[%emt 0:01:15]} 25. Kf2 {[%emt 0:00:19]} b2 {[%emt 0:04:14]} 26. Nd3 {[%emt 0:01:14]} Qc2+ {[%emt 0:00:19]} 27. Kg3 {[%emt 0:01:02]} g5 {[%emt 0:02:32]} 28. Kh3 {[%emt 0:06:07]} gxf4 {[%emt 0:00:38]} 29. Nxf4 {[%emt 0:00:08]} Na3 {[%emt 0:04:08]} 30. Nd5 {[%emt 0:01:43]} Bg5 {[%emt 0:01:36]} 31. Qe1 {[%emt 0:01:09]} Kh8 {[%emt 0:01:28]} 32. f4 {[%emt 0:01:18]} Bd8 {[%emt 0:00:44]} 33. f5 {[%emt 0:01:43]} Rg8 {[%emt 0:01:06]} 34. Rg1 {[%emt 0:00:27]} Nxb1 {[%emt 0:00:43]} 35. Qe3 {[%emt 0:00:57]} Qd2 {[%emt 0:00:42]} 36. g4 {[%emt 0:01:19]} Qxe3+ {[%emt 0:00:14]} 37. Nxe3 {[%emt 0:00:06]} Nxc3 {[%emt 0:00:10]} 38. g5 {[%emt 0:00:16]} Rxg5 {[%emt 0:00:28]} 0-1